[Event "*** Titled Tuesday Blitz"]
[Site "Chess.com"]
[Date "2018.12.04"]
[Round "8"]
[White "matiss90"]
[Black "Fighterman91"]
[Result "0-1"]
[WhiteElo "2423"]
[BlackElo "2600"]
[TimeControl "180+2"]
[EndTime "14:47:15 PST"]
[Termination "Fighterman91 won by resignation"]

1. e4 {[%clk 0:03:01.9]} 1... e5 {[%clk 0:02:55.1]} 2. Nf3 {[%clk 0:03:02.4]}
2... Nc6 {[%clk 0:02:55.5]} 3. Bb5 {[%clk 0:03:03.2]} 3... Nf6 {[%clk
0:02:50.1]} 4. d3 {[%clk 0:03:03.6]} 4... Bc5 {[%clk 0:02:50.4]} 5. c3 {[%clk
0:03:00.5]} 5... O-O {[%clk 0:02:50.1]} 6. O-O {[%clk 0:03:00.5]} 6... d6 {[%clk
0:02:50.3]} 7. h3 {[%clk 0:03:01]} 7... Ne7 {[%clk 0:02:50.9]} 8. d4 {[%clk
0:02:55.4]} 8... Bb6 {[%clk 0:02:51.4]} 9. dxe5 {[%clk 0:02:47.3]} 9... Nxe4
{[%clk 0:02:51.7]} 10. Bd3 {[%clk 0:02:40.7]} 10... d5 {[%clk 0:02:46.2]} 11.
Nbd2 {[%clk 0:02:39.8]} 11... Bf5 {[%clk 0:02:35.9]} 12. Qe2 {[%clk 0:02:28.2]}
12... Ng3 {[%clk 0:02:35.8]} 0-1

[Event "*** Titled Tuesday Blitz"]
[Site "Chess.com"]
[Date "2018.12.04"]
[Round "8"]
[White "chesstatour"]
[Black "Fins0905"]
[Result "0-1"]
[WhiteElo "2091"]
[BlackElo "2637"]
[TimeControl "180+2"]
[EndTime "14:48:22 PST"]
[Termination "Fins0905 won by resignation"]

1. c4 {[%clk 0:03:01.9]} 1... c6 {[%clk 0:02:58.5]} 2. d4 {[%clk 0:03:01.9]}
2... d5 {[%clk 0:02:59.1]} 3. g3 {[%clk 0:03:02.2]} 3... Nf6 {[%clk 0:02:59.9]}
4. Bg2 {[%clk 0:03:03.8]} 4... dxc4 {[%clk 0:02:57.5]} 5. e4 {[%clk 0:02:33.8]}
5... e5 {[%clk 0:02:54.2]} 6. d5 {[%clk 0:02:32.9]} 6... cxd5 {[%clk 0:02:30.8]}
7. exd5 {[%clk 0:02:33.6]} 7... Bg4 {[%clk 0:02:26]} 8. Qa4+ {[%clk 0:02:29.7]}
8... Nbd7 {[%clk 0:02:26.8]} 9. Qxc4 {[%clk 0:02:30.4]} 9... Rc8 {[%clk
0:02:26.9]} 10. Qxc8 {[%clk 0:02:22.6]} 10... Qxc8 {[%clk 0:02:27.7]} 11. Nc3
{[%clk 0:02:24.3]} 11... Bb4 {[%clk 0:02:20]} 12. Bd2 {[%clk 0:02:23.8]} 12...
Qc4 {[%clk 0:02:18.6]} 13. h3 {[%clk 0:02:23]} 13... Bh5 {[%clk 0:02:16]} 14. g4
{[%clk 0:02:23.3]} 14... Bg6 {[%clk 0:02:15.9]} 15. Bf1 {[%clk 0:02:08.7]} 15...
Bd3 {[%clk 0:02:09.5]} 16. b3 {[%clk 0:01:48.9]} 16... Qa6 {[%clk 0:02:08.5]}
17. Bg2 {[%clk 0:01:43.1]} 17... O-O {[%clk 0:02:07.1]} 18. Nf3 {[%clk
0:01:43.7]} 18... Rc8 {[%clk 0:02:06.5]} 19. Rc1 {[%clk 0:01:42.5]} 19... Ne4
{[%clk 0:02:05.5]} 0-1

[Event "*** Titled Tuesday Blitz"]
[Site "Chess.com"]
[Date "2018.12.04"]
[Round "8"]
[White "LazyIM"]
[Black "amiralfio"]
[Result "1-0"]
[WhiteElo "2628"]
[BlackElo "2436"]
[TimeControl "180+2"]
[EndTime "14:48:29 PST"]
[Termination "LazyIM won by resignation"]

1. e4 {[%clk 0:03:01.9]} 1... c5 {[%clk 0:02:59.4]} 2. Nf3 {[%clk 0:03:02.9]}
2... e6 {[%clk 0:02:59.5]} 3. d4 {[%clk 0:03:04.3]} 3... cxd4 {[%clk 0:03:01.4]}
4. Nxd4 {[%clk 0:03:06.1]} 4... Nf6 {[%clk 0:03:03]} 5. Nc3 {[%clk 0:03:06.7]}
5... Nc6 {[%clk 0:03:04.5]} 6. Ndb5 {[%clk 0:03:07.1]} 6... d6 {[%clk
0:03:05.7]} 7. Bf4 {[%clk 0:03:08.1]} 7... e5 {[%clk 0:03:07.1]} 8. Bg5 {[%clk
0:03:09.5]} 8... a6 {[%clk 0:03:06.8]} 9. Na3 {[%clk 0:03:10.7]} 9... b5 {[%clk
0:03:08]} 10. Bxf6 {[%clk 0:03:11.5]} 10... gxf6 {[%clk 0:03:09.6]} 11. Nd5
{[%clk 0:03:13.2]} 11... Bg7 {[%clk 0:03:11]} 12. Bd3 {[%clk 0:03:14.2]} 12...
Ne7 {[%clk 0:03:12.5]} 13. Nxe7 {[%clk 0:03:12.1]} 13... Qxe7 {[%clk 0:03:14.4]}
14. c4 {[%clk 0:03:10.8]} 14... f5 {[%clk 0:03:10.5]} 15. Qf3 {[%clk 0:03:08.3]}
15... Qb7 {[%clk 0:03:01.7]} 16. cxb5 {[%clk 0:03:03.6]} 16... d5 {[%clk
0:02:59.1]} 17. Qg3 {[%clk 0:02:57.3]} 17... O-O {[%clk 0:02:55.8]} 18. exf5
{[%clk 0:02:57.2]} 18... Kh8 {[%clk 0:02:50.1]} 19. Qh4 {[%clk 0:02:52.2]} 19...
Qb6 {[%clk 0:02:44.7]} 20. f6 {[%clk 0:02:51.3]} 20... e4 {[%clk 0:02:41]} 21.
fxg7+ {[%clk 0:02:52.3]} 21... Kxg7 {[%clk 0:02:42.6]} 22. Qg5+ {[%clk
0:02:49.3]} 22... Kh8 {[%clk 0:02:42.7]} 23. Be2 {[%clk 0:02:44.1]} 23... axb5
{[%clk 0:02:29.3]} 24. Qxd5 {[%clk 0:02:43.1]} 24... Bb7 {[%clk 0:02:29]} 25.
Qxb5 {[%clk 0:02:41.4]} 25... Qc7 {[%clk 0:01:50.7]} 26. O-O {[%clk 0:02:38.8]}
26... Ba6 {[%clk 0:01:51.9]} 27. Qh5 {[%clk 0:02:35.2]} 1-0

[Event "*** Titled Tuesday Blitz"]
[Site "Chess.com"]
[Date "2018.12.04"]
[Round "8"]
[White "pedroholly22"]
[Black "saraswathii"]
[Result "1-0"]
[WhiteElo "2221"]
[BlackElo "2244"]
[TimeControl "180+2"]
[EndTime "14:48:29 PST"]
[Termination "pedroholly22 won by resignation"]

1. e4 {[%clk 0:03:01.9]} 1... c5 {[%clk 0:02:58.9]} 2. Nf3 {[%clk 0:03:00]} 2...
e6 {[%clk 0:02:59.9]} 3. d4 {[%clk 0:03:01.9]} 3... cxd4 {[%clk 0:03:00.3]} 4.
Nxd4 {[%clk 0:03:03.8]} 4... Nf6 {[%clk 0:03:01.5]} 5. Nc3 {[%clk 0:03:04.3]}
5... Nc6 {[%clk 0:03:02.7]} 6. Nxc6 {[%clk 0:03:02.8]} 6... bxc6 {[%clk
0:03:03.1]} 7. e5 {[%clk 0:03:04.1]} 7... Nd5 {[%clk 0:03:04.1]} 8. Ne4 {[%clk
0:03:05.5]} 8... f5 {[%clk 0:03:04.3]} 9. exf6 {[%clk 0:03:05.2]} 9... Nxf6
{[%clk 0:03:04.8]} 10. Bd3 {[%clk 0:03:02.6]} 10... Qa5+ {[%clk 0:03:01.3]} 11.
Bd2 {[%clk 0:03:00.8]} 11... Qb6 {[%clk 0:02:50]} 12. Nxf6+ {[%clk 0:02:57.9]}
12... gxf6 {[%clk 0:02:50.4]} 13. Qh5+ {[%clk 0:02:56.7]} 13... Kd8 {[%clk
0:02:50.8]} 14. O-O {[%clk 0:02:53.9]} 14... a5 {[%clk 0:02:31]} 15. Bc3 {[%clk
0:02:39.7]} 15... Be7 {[%clk 0:02:27.9]} 16. Qf7 {[%clk 0:02:34.5]} 16... Rf8
{[%clk 0:02:17.3]} 17. Qxh7 {[%clk 0:02:33.6]} 17... Ba6 {[%clk 0:02:18]} 18.
Bxa6 {[%clk 0:02:31.7]} 18... Rxa6 {[%clk 0:02:19.9]} 19. Rad1 {[%clk
0:02:30.7]} 19... Qc5 {[%clk 0:02:16.5]} 20. Rfe1 {[%clk 0:02:30.1]} 20... Kc7
{[%clk 0:02:13.3]} 21. Bd4 {[%clk 0:02:24.6]} 21... Qd6 {[%clk 0:02:06.1]} 22.
Be3 {[%clk 0:02:06.3]} 22... Qb4 {[%clk 0:02:02.9]} 23. c3 {[%clk 0:02:05.9]}
1-0

[Event "*** Titled Tuesday Blitz"]
[Site "Chess.com"]
[Date "2018.12.04"]
[Round "8"]
[White "Evgeny81"]
[Black "alishersuleymenov"]
[Result "0-1"]
[WhiteElo "2550"]
[BlackElo "2493"]
[TimeControl "180+2"]
[EndTime "14:49:42 PST"]
[Termination "alishersuleymenov won by resignation"]

1. Nf3 {[%clk 0:03:01.9]} 1... c5 {[%clk 0:01:52.6]} 2. c4 {[%clk 0:03:02.4]}
2... Nc6 {[%clk 0:01:53.4]} 3. g3 {[%clk 0:03:03.8]} 3... g6 {[%clk 0:01:53.3]}
4. Bg2 {[%clk 0:03:05.2]} 4... Bg7 {[%clk 0:01:55.2]} 5. O-O {[%clk 0:03:06.4]}
5... e6 {[%clk 0:01:57.1]} 6. Nc3 {[%clk 0:03:06.7]} 6... Nge7 {[%clk
0:01:58.6]} 7. d3 {[%clk 0:03:07.8]} 7... O-O {[%clk 0:01:59.2]} 8. Bg5 {[%clk
0:03:08.8]} 8... h6 {[%clk 0:01:59.3]} 9. Bf4 {[%clk 0:03:09.3]} 9... d6 {[%clk
0:02:00.1]} 10. Qc1 {[%clk 0:03:09.9]} 10... Kh7 {[%clk 0:02:01.7]} 11. a3
{[%clk 0:03:11.2]} 11... b6 {[%clk 0:02:01.1]} 12. b4 {[%clk 0:03:09.9]} 12...
Bb7 {[%clk 0:02:00.3]} 13. Rb1 {[%clk 0:03:09.6]} 13... Qd7 {[%clk 0:01:59.2]}
14. Ne4 {[%clk 0:03:05.1]} 14... Nf5 {[%clk 0:01:46.9]} 15. g4 {[%clk
0:02:46.4]} 15... Nfd4 {[%clk 0:01:39.4]} 16. Nxd4 {[%clk 0:02:44.3]} 16... Nxd4
{[%clk 0:01:41.3]} 17. Re1 {[%clk 0:02:44.2]} 17... e5 {[%clk 0:01:40.2]} 18.
Bxh6 {[%clk 0:02:41.5]} 18... Bxe4 {[%clk 0:01:27.8]} 19. Bxg7 {[%clk
0:02:41.9]} 19... Kxg7 {[%clk 0:01:29.4]} 20. Bxe4 {[%clk 0:02:42.5]} 20...
Qxg4+ {[%clk 0:00:14.1]} 21. Kh1 {[%clk 0:02:43.3]} 21... Rh8 {[%clk 0:00:14.2]}
22. Rg1 {[%clk 0:02:44.3]} 22... Rxh2+ {[%clk 0:00:14.2]} 0-1

[Event "*** Titled Tuesday Blitz"]
[Site "Chess.com"]
[Date "2018.12.04"]
[Round "8"]
[White "Jenia84"]
[Black "BvsN"]
[Result "1-0"]
[WhiteElo "2224"]
[BlackElo "2279"]
[TimeControl "180+2"]
[EndTime "14:50:16 PST"]
[Termination "Jenia84 won by checkmate"]

1. e4 {[%clk 0:03:01.9]} 1... c5 {[%clk 0:03:00.6]} 2. Nf3 {[%clk 0:03:01.8]}
2... e6 {[%clk 0:03:01.8]} 3. d4 {[%clk 0:03:02.8]} 3... cxd4 {[%clk 0:03:03.2]}
4. Nxd4 {[%clk 0:03:04.4]} 4... a6 {[%clk 0:03:04.5]} 5. Bd3 {[%clk 0:03:03.7]}
5... Nf6 {[%clk 0:03:00.2]} 6. Qe2 {[%clk 0:03:02.6]} 6... d6 {[%clk 0:02:59.7]}
7. Nc3 {[%clk 0:03:00.7]} 7... g6 {[%clk 0:02:58.8]} 8. Be3 {[%clk 0:03:00.4]}
8... Bg7 {[%clk 0:02:59.8]} 9. O-O-O {[%clk 0:03:01.6]} 9... O-O {[%clk
0:02:59.5]} 10. h4 {[%clk 0:03:03.1]} 10... b5 {[%clk 0:02:46]} 11. h5 {[%clk
0:03:03.6]} 11... b4 {[%clk 0:02:40.7]} 12. Na4 {[%clk 0:02:49.2]} 12... e5
{[%clk 0:02:27]} 13. Nf3 {[%clk 0:02:44.1]} 13... Ng4 {[%clk 0:02:21.6]} 14. Nb6
{[%clk 0:02:34.9]} 14... Nxe3 {[%clk 0:02:20.1]} 15. Qxe3 {[%clk 0:02:35]} 15...
Ra7 {[%clk 0:01:40.8]} 16. Nxc8 {[%clk 0:02:33.8]} 16... Rb7 {[%clk 0:01:39.2]}
17. hxg6 {[%clk 0:02:32.5]} 17... hxg6 {[%clk 0:01:33.6]} 18. Na7 {[%clk
0:02:13.8]} 18... Qe7 {[%clk 0:01:21.3]} 19. Bc4 {[%clk 0:01:49.1]} 19... Rxa7
{[%clk 0:01:17.3]} 20. Rxd6 {[%clk 0:01:37.9]} 20... Rc7 {[%clk 0:01:00.1]} 21.
Rxg6 {[%clk 0:01:38.7]} 21... Rfc8 {[%clk 0:00:36.6]} 22. Rxg7+ {[%clk
0:01:39.5]} 22... Kf8 {[%clk 0:00:35.7]} 23. Rh8+ {[%clk 0:01:37.9]} 23... Kxg7
{[%clk 0:00:37]} 24. Qh6# {[%clk 0:01:38.8]} 1-0

[Event "*** Titled Tuesday Blitz"]
[Site "Chess.com"]
[Date "2018.12.04"]
[Round "8"]
[White "NateSolon"]
[Black "ShadowJolteon"]
[Result "0-1"]
[WhiteElo "2484"]
[BlackElo "2425"]
[TimeControl "180+2"]
[EndTime "14:50:20 PST"]
[Termination "ShadowJolteon won by resignation"]

1. e4 {[%clk 0:03:01.9]} 1... c6 {[%clk 0:02:57.8]} 2. Nf3 {[%clk 0:03:01.8]}
2... d5 {[%clk 0:02:59.7]} 3. exd5 {[%clk 0:03:03.7]} 3... cxd5 {[%clk 0:02:55]}
4. Ne5 {[%clk 0:03:04.8]} 4... Nf6 {[%clk 0:02:51.8]} 5. d4 {[%clk 0:03:05.6]}
5... g6 {[%clk 0:02:50.2]} 6. c3 {[%clk 0:03:00.1]} 6... Bg7 {[%clk 0:02:49]} 7.
Bd3 {[%clk 0:03:00.5]} 7... O-O {[%clk 0:02:47.5]} 8. O-O {[%clk 0:03:01.3]}
8... Nc6 {[%clk 0:02:47.8]} 9. f4 {[%clk 0:02:55.5]} 9... Bf5 {[%clk 0:02:44.5]}
10. Bxf5 {[%clk 0:02:50.5]} 10... gxf5 {[%clk 0:02:46.4]} 11. Nd2 {[%clk
0:02:50.8]} 11... Ne4 {[%clk 0:02:36]} 12. Qh5 {[%clk 0:02:32.3]} 12... e6
{[%clk 0:02:32]} 13. Ndf3 {[%clk 0:02:23.7]} 13... Ne7 {[%clk 0:02:23]} 14. Ng5
{[%clk 0:02:01.7]} 14... Nf6 {[%clk 0:02:22.2]} 15. Qh4 {[%clk 0:01:54.1]} 15...
h6 {[%clk 0:02:14.5]} 16. Ngf3 {[%clk 0:01:46]} 16... Ne4 {[%clk 0:02:14.7]} 17.
Be3 {[%clk 0:01:39.3]} 17... Ng6 {[%clk 0:02:06.2]} 18. Qe1 {[%clk 0:01:33.1]}
18... Rc8 {[%clk 0:01:53.1]} 19. Kh1 {[%clk 0:01:33.3]} 19... Ne7 {[%clk
0:01:50.4]} 20. Rg1 {[%clk 0:01:31.7]} 20... Kh7 {[%clk 0:01:47.9]} 21. Qh4
{[%clk 0:01:27.8]} 21... Ng6 {[%clk 0:01:44.8]} 22. Qh5 {[%clk 0:01:23]} 22...
Nxf4 {[%clk 0:01:31.7]} 23. Qh4 {[%clk 0:01:02.3]} 23... Qxh4 {[%clk 0:01:18]}
24. Nxh4 {[%clk 0:01:04.2]} 24... Bxe5 {[%clk 0:01:19.7]} 25. dxe5 {[%clk
0:01:03.5]} 25... Nd3 {[%clk 0:01:21.6]} 0-1

[Event "*** Titled Tuesday Blitz"]
[Site "Chess.com"]
[Date "2018.12.04"]
[Round "8"]
[White "TheRigos"]
[Black "pedromartinez91"]
[Result "0-1"]
[WhiteElo "2413"]
[BlackElo "2426"]
[TimeControl "180+2"]
[EndTime "14:50:23 PST"]
[Termination "pedromartinez91 won by resignation"]

1. e4 {[%clk 0:03:01.9]} 1... c5 {[%clk 0:03:00.3]} 2. Nf3 {[%clk 0:03:02.1]}
2... Nc6 {[%clk 0:03:01.2]} 3. d4 {[%clk 0:03:03.4]} 3... cxd4 {[%clk
0:03:02.1]} 4. Nxd4 {[%clk 0:03:05.3]} 4... d5 {[%clk 0:03:01.8]} 5. Bb5 {[%clk
0:02:51.5]} 5... dxe4 {[%clk 0:03:02.4]} 6. Nc3 {[%clk 0:02:34.2]} 6... Bd7
{[%clk 0:02:50.6]} 7. Bc4 {[%clk 0:02:31]} 7... Nf6 {[%clk 0:02:47.7]} 8. O-O
{[%clk 0:02:22]} 8... Rc8 {[%clk 0:02:37.8]} 9. Nxc6 {[%clk 0:02:16.1]} 9...
Bxc6 {[%clk 0:02:36.4]} 10. Qe2 {[%clk 0:02:17.2]} 10... a6 {[%clk 0:02:29.2]}
11. Rd1 {[%clk 0:02:17.4]} 11... Qa5 {[%clk 0:02:28.8]} 12. Bf4 {[%clk 0:01:47]}
12... e6 {[%clk 0:02:27.9]} 13. h3 {[%clk 0:01:34]} 13... Qf5 {[%clk 0:02:25.6]}
14. Bh2 {[%clk 0:01:23.4]} 14... Bc5 {[%clk 0:02:25.9]} 15. a3 {[%clk
0:01:12.6]} 15... O-O {[%clk 0:02:24.6]} 16. b4 {[%clk 0:01:13.9]} 16... Bb6
{[%clk 0:02:02.5]} 17. Bd6 {[%clk 0:01:13.6]} 17... Rfd8 {[%clk 0:02:01]} 18.
Rd2 {[%clk 0:01:09.3]} 18... e3 {[%clk 0:01:52.1]} 19. fxe3 {[%clk 0:01:06.4]}
19... Qg5 {[%clk 0:01:52.6]} 20. Re1 {[%clk 0:00:55]} 20... Bxg2 {[%clk
0:01:49.9]} 21. Qxg2 {[%clk 0:00:49.9]} 21... Bxe3+ {[%clk 0:01:45.8]} 22. Kh1
{[%clk 0:00:30.5]} 22... Bxd2 {[%clk 0:01:46.4]} 23. Qxg5 {[%clk 0:00:31.7]}
23... Bxg5 {[%clk 0:01:47]} 24. Bc5 {[%clk 0:00:27.7]} 24... Bd2 {[%clk
0:01:45.1]} 0-1

[Event "*** Titled Tuesday Blitz"]
[Site "Chess.com"]
[Date "2018.12.04"]
[Round "8"]
[White "JonahWillow"]
[Black "jefferyx"]
[Result "0-1"]
[WhiteElo "2687"]
[BlackElo "2774"]
[TimeControl "180+2"]
[EndTime "14:50:24 PST"]
[Termination "jefferyx won by checkmate"]

1. Nc3 {[%clk 0:03:01.9]} 1... c5 {[%clk 0:02:56.6]} 2. Nf3 {[%clk 0:03:02.4]}
2... Nf6 {[%clk 0:02:53.5]} 3. d4 {[%clk 0:02:52.7]} 3... cxd4 {[%clk
0:02:54.5]} 4. Qxd4 {[%clk 0:02:54.6]} 4... Nc6 {[%clk 0:02:55.2]} 5. Qh4 {[%clk
0:02:51.5]} 5... e6 {[%clk 0:02:44]} 6. Bg5 {[%clk 0:02:48.7]} 6... Be7 {[%clk
0:02:44.5]} 7. e4 {[%clk 0:02:48.5]} 7... Qc7 {[%clk 0:02:37.6]} 8. O-O-O {[%clk
0:02:46]} 8... a6 {[%clk 0:02:38.8]} 9. Qg3 {[%clk 0:02:32]} 9... Qxg3 {[%clk
0:02:39.4]} 10. hxg3 {[%clk 0:02:33.9]} 10... Ng4 {[%clk 0:02:41.2]} 11. Bxe7
{[%clk 0:02:32.6]} 11... Kxe7 {[%clk 0:02:43.1]} 12. Rd2 {[%clk 0:02:33]} 12...
b5 {[%clk 0:02:44.2]} 13. Nh2 {[%clk 0:02:29.9]} 13... Nf6 {[%clk 0:02:33.2]}
14. Be2 {[%clk 0:02:25.9]} 14... b4 {[%clk 0:02:28.9]} 15. Na4 {[%clk
0:02:08.4]} 15... Nxe4 {[%clk 0:02:28.8]} 16. Nb6 {[%clk 0:01:56.3]} 16... Rb8
{[%clk 0:02:29.3]} 17. Nxc8+ {[%clk 0:01:57.6]} 17... Rbxc8 {[%clk 0:02:21.7]}
18. Bxa6 {[%clk 0:01:58.7]} 18... Ra8 {[%clk 0:02:20.1]} 19. Re2 {[%clk
0:01:59.9]} 19... Rxa6 {[%clk 0:02:19.1]} 20. Rxe4 {[%clk 0:02:00.6]} 20... Rxa2
{[%clk 0:02:20.3]} 21. Rhe1 {[%clk 0:01:53.9]} 21... Rc8 {[%clk 0:02:07.2]} 22.
Nf3 {[%clk 0:01:48.7]} 22... d5 {[%clk 0:02:08]} 23. R4e2 {[%clk 0:01:47.8]}
23... h6 {[%clk 0:01:53.7]} 24. g4 {[%clk 0:01:42.7]} 24... Kd6 {[%clk 0:01:42]}
25. Rd1 {[%clk 0:01:18.8]} 25... b3 {[%clk 0:01:41.3]} 26. c3 {[%clk 0:01:15.7]}
26... Na5 {[%clk 0:01:39.3]} 27. Ne5 {[%clk 0:01:08.9]} 27... f6 {[%clk
0:01:26.1]} 28. Nd3 {[%clk 0:01:04.3]} 28... Nc4 {[%clk 0:01:26.9]} 29. Nb4
{[%clk 0:01:00.4]} 29... Ra1# {[%clk 0:01:27.4]} 0-1

[Event "*** Titled Tuesday Blitz"]
[Site "Chess.com"]
[Date "2018.12.04"]
[Round "8"]
[White "Winehouse83"]
[Black "chidori_boruto"]
[Result "0-1"]
[WhiteElo "2442"]
[BlackElo "2563"]
[TimeControl "180+2"]
[EndTime "14:50:26 PST"]
[Termination "chidori_boruto won by resignation"]

1. d4 {[%clk 0:02:13.6]} 1... d5 {[%clk 0:02:58.9]} 2. c4 {[%clk 0:02:14.3]}
2... c6 {[%clk 0:02:59.4]} 3. Nf3 {[%clk 0:02:15.4]} 3... Nf6 {[%clk 0:03:00.1]}
4. Nc3 {[%clk 0:02:16.5]} 4... dxc4 {[%clk 0:03:00.9]} 5. a4 {[%clk 0:02:05.7]}
5... e6 {[%clk 0:03:02]} 6. g3 {[%clk 0:01:46.1]} 6... c5 {[%clk 0:02:59.5]} 7.
Bg2 {[%clk 0:01:46.5]} 7... Nc6 {[%clk 0:02:59.8]} 8. O-O {[%clk 0:01:34.7]}
8... cxd4 {[%clk 0:02:59.8]} 9. Nb5 {[%clk 0:01:35.1]} 9... e5 {[%clk
0:02:56.5]} 10. Na3 {[%clk 0:01:16.6]} 10... Be6 {[%clk 0:02:55.9]} 11. Qc2
{[%clk 0:01:17.4]} 11... Nb4 {[%clk 0:02:53.2]} 12. Qb1 {[%clk 0:01:15.5]} 12...
Bd6 {[%clk 0:02:49.8]} 13. Bd2 {[%clk 0:01:16.6]} 13... Nc6 {[%clk 0:02:48.4]}
14. Rc1 {[%clk 0:01:14.3]} 14... Bxa3 {[%clk 0:02:47.4]} 15. Rxa3 {[%clk
0:01:05.1]} 15... O-O {[%clk 0:02:48]} 16. Ng5 {[%clk 0:01:01.9]} 16... Bd5
{[%clk 0:02:44.1]} 17. Bxd5 {[%clk 0:00:59.8]} 17... Qxd5 {[%clk 0:02:46]} 18.
Qc2 {[%clk 0:01:00.7]} 18... h6 {[%clk 0:02:43.6]} 19. Nf3 {[%clk 0:00:55.8]}
19... e4 {[%clk 0:02:44.4]} 20. Ne1 {[%clk 0:00:52.5]} 20... Ne5 {[%clk
0:02:44.7]} 21. Bf4 {[%clk 0:00:51.3]} 21... Rac8 {[%clk 0:02:40.3]} 22. Qd2
{[%clk 0:00:48.2]} 22... c3 {[%clk 0:02:34.7]} 23. bxc3 {[%clk 0:00:38.6]} 23...
Nc4 {[%clk 0:02:35.5]} 24. Qa2 {[%clk 0:00:40.2]} 24... Nxa3 {[%clk 0:02:36.1]}
25. Qxa3 {[%clk 0:00:42.1]} 25... dxc3 {[%clk 0:02:29.4]} 26. Rxc3 {[%clk
0:00:42.6]} 26... Rxc3 {[%clk 0:02:29.8]} 27. Qxc3 {[%clk 0:00:44.2]} 27... Qd1
{[%clk 0:02:29]} 28. Kg2 {[%clk 0:00:12.7]} 28... Nd5 {[%clk 0:02:28]} 29. Qd2
{[%clk 0:00:08.2]} 29... Nxf4+ {[%clk 0:02:28.3]} 30. Qxf4 {[%clk 0:00:09.4]}
30... Qxe1 {[%clk 0:02:29.2]} 0-1

[Event "*** Titled Tuesday Blitz"]
[Site "Chess.com"]
[Date "2018.12.04"]
[Round "8"]
[White "VladimirBelous"]
[Black "Keaton87"]
[Result "1-0"]
[WhiteElo "2750"]
[BlackElo "2545"]
[TimeControl "180+2"]
[EndTime "14:50:37 PST"]
[Termination "VladimirBelous won by resignation"]

1. Nf3 {[%clk 0:03:01.9]} 1... Nf6 {[%clk 0:03:01]} 2. c4 {[%clk 0:03:02]} 2...
g6 {[%clk 0:03:02.1]} 3. Nc3 {[%clk 0:03:03.4]} 3... Bg7 {[%clk 0:03:02.6]} 4.
e4 {[%clk 0:03:05.1]} 4... O-O {[%clk 0:03:03]} 5. d4 {[%clk 0:03:06.7]} 5... d6
{[%clk 0:03:04]} 6. h3 {[%clk 0:03:08.3]} 6... e5 {[%clk 0:03:03.9]} 7. d5
{[%clk 0:03:09.9]} 7... Qe8 {[%clk 0:03:03.2]} 8. g3 {[%clk 0:03:07.3]} 8... Na6
{[%clk 0:03:01.4]} 9. Be3 {[%clk 0:03:06.6]} 9... Nc5 {[%clk 0:03:00.6]} 10. Nd2
{[%clk 0:03:07.7]} 10... a5 {[%clk 0:03:00.5]} 11. Be2 {[%clk 0:03:08]} 11...
Nfd7 {[%clk 0:02:59.1]} 12. g4 {[%clk 0:03:03.8]} 12... Kh8 {[%clk 0:02:59.6]}
13. h4 {[%clk 0:03:02.4]} 13... f5 {[%clk 0:03:00.6]} 14. h5 {[%clk 0:03:03]}
14... f4 {[%clk 0:02:58.6]} 15. Bxc5 {[%clk 0:03:01.1]} 15... Nxc5 {[%clk
0:02:59.7]} 16. g5 {[%clk 0:02:57.5]} 16... f3 {[%clk 0:02:41.7]} 17. Nxf3
{[%clk 0:02:57.3]} 17... gxh5 {[%clk 0:02:38.5]} 18. Nh4 {[%clk 0:02:52.6]}
18... Qf7 {[%clk 0:02:33.4]} 19. f3 {[%clk 0:02:33.2]} 19... Qf4 {[%clk
0:02:34.3]} 20. Qd2 {[%clk 0:02:34.7]} 20... Qg3+ {[%clk 0:02:33.2]} 21. Kd1
{[%clk 0:02:36.1]} 21... Bh3 {[%clk 0:02:25.2]} 22. Qe1 {[%clk 0:02:35]} 22...
Qxe1+ {[%clk 0:01:48.7]} 23. Kxe1 {[%clk 0:02:36.9]} 23... Bd7 {[%clk
0:01:48.5]} 24. Kd2 {[%clk 0:02:33.8]} 24... Be8 {[%clk 0:01:40.4]} 25. Rag1
{[%clk 0:02:34.1]} 25... Bg6 {[%clk 0:01:39.9]} 26. Nd1 {[%clk 0:02:34.7]} 26...
Rf4 {[%clk 0:01:36.7]} 27. Ne3 {[%clk 0:02:35.8]} 27... Kg8 {[%clk 0:01:22.6]}
28. Nef5 {[%clk 0:02:35.5]} 28... Kf7 {[%clk 0:01:17.3]} 29. Ng2 {[%clk
0:02:36.5]} 29... Rxf5 {[%clk 0:01:00.2]} 30. exf5 {[%clk 0:02:37.6]} 30... Bxf5
{[%clk 0:01:02.1]} 31. Rxh5 {[%clk 0:02:38.7]} 31... e4 {[%clk 0:01:02.2]} 32.
Rf1 {[%clk 0:02:30.1]} 32... Bg6 {[%clk 0:00:50.9]} 33. Rh4 {[%clk 0:02:30.8]}
33... Bxb2 {[%clk 0:00:36.4]} 34. f4 {[%clk 0:02:31.7]} 34... e3+ {[%clk
0:00:27.7]} 35. Nxe3 {[%clk 0:02:31.9]} 35... Ne4+ {[%clk 0:00:29]} 36. Kc2
{[%clk 0:02:33.5]} 36... Bd4 {[%clk 0:00:23]} 37. f5 {[%clk 0:02:34.7]} 1-0

[Event "*** Titled Tuesday Blitz"]
[Site "Chess.com"]
[Date "2018.12.04"]
[Round "8"]
[White "Vamostodorecto"]
[Black "GreatDamnedRedSpot"]
[Result "0-1"]
[WhiteElo "2408"]
[BlackElo "2334"]
[TimeControl "180+2"]
[EndTime "14:50:53 PST"]
[Termination "GreatDamnedRedSpot won by resignation"]

1. d4 {[%clk 0:03:01.9]} 1... e6 {[%clk 0:03:00.9]} 2. c4 {[%clk 0:03:01.9]}
2... d5 {[%clk 0:03:01.9]} 3. Nc3 {[%clk 0:03:02.4]} 3... c6 {[%clk 0:03:03.2]}
4. e4 {[%clk 0:03:02.9]} 4... dxe4 {[%clk 0:03:03.6]} 5. Nxe4 {[%clk 0:03:04.8]}
5... Nf6 {[%clk 0:03:05]} 6. Nxf6+ {[%clk 0:03:04.8]} 6... Qxf6 {[%clk
0:03:06.1]} 7. Nf3 {[%clk 0:03:06.7]} 7... Bb4+ {[%clk 0:03:07.1]} 8. Bd2 {[%clk
0:03:05.9]} 8... Bxd2+ {[%clk 0:03:08.7]} 9. Qxd2 {[%clk 0:03:07.8]} 9... Nd7
{[%clk 0:03:10]} 10. Bd3 {[%clk 0:03:08.8]} 10... O-O {[%clk 0:03:11.3]} 11. O-O
{[%clk 0:03:09.4]} 11... e5 {[%clk 0:03:12.5]} 12. dxe5 {[%clk 0:03:02]} 12...
Nxe5 {[%clk 0:03:13.1]} 13. Nxe5 {[%clk 0:03:03.9]} 13... Qxe5 {[%clk
0:03:14.7]} 14. Rfe1 {[%clk 0:03:05.7]} 14... Qf6 {[%clk 0:03:16.3]} 15. Qc2
{[%clk 0:03:01.6]} 15... g6 {[%clk 0:03:16.5]} 16. Re3 {[%clk 0:03:02.1]} 16...
Be6 {[%clk 0:03:16.5]} 17. Rae1 {[%clk 0:02:58.3]} 17... Rfd8 {[%clk 0:03:17.4]}
18. Re5 {[%clk 0:02:47.5]} 18... Rd4 {[%clk 0:03:16.6]} 19. b3 {[%clk
0:02:42.9]} 19... Rad8 {[%clk 0:03:16.9]} 20. R5e3 {[%clk 0:02:35.9]} 20... R8d7
{[%clk 0:02:51.4]} 21. Rf3 {[%clk 0:02:06.6]} 21... Qd8 {[%clk 0:02:46.3]} 22.
Bf1 {[%clk 0:01:36]} 22... Rd2 {[%clk 0:02:37.9]} 23. Qb1 {[%clk 0:01:08.5]}
23... Bf5 {[%clk 0:01:24.3]} 24. Qa1 {[%clk 0:00:44.7]} 24... Rd1 {[%clk
0:01:22.5]} 25. Rfe3 {[%clk 0:00:43.8]} 25... Rxa1 {[%clk 0:01:18.7]} 26. Re8+
{[%clk 0:00:37.6]} 26... Qxe8 {[%clk 0:01:19.9]} 0-1